bitfinex/quotes_BTCUSD_20251221
["timestamp","ask_amount","ask_price","bid_price","bid_amount"]
[1766353455017,0.12301,88312.0,88302.0,0.1177854]
[1766353455220,0.12301,88312.0,88302.0,0.12911017]
[1766353455623,0.12301,88312.0,88296.0,0.11486]
[1766353455624,0.12301,88305.0,88296.0,0.01132554]
[1766353455846,0.23851,88305.0,88297.0,0.01132541]
[1766353456517,0.23851,88305.0,88298.0,0.01132528]
[1766353456742,0.23851,88305.0,88294.0,0.01132579]
[1766353456939,0.017004,88308.0,88296.0,0.01132554]
[1766353457118,0.23851,88307.0,88295.0,0.01132566]
[1766353457322,0.23851,88307.0,88296.0,0.01132554]
[1766353457545,0.00568,88308.0,88297.0,0.01132541]
[1766353457745,0.00568,88308.0,88298.0,0.01132528]
[1766353457949,0.23851,88307.0,88299.0,0.01132515]
[1766353458154,0.1155,88306.0,88300.0,0.01132502]
[1766353458353,0.12301,88305.0,88301.0,0.0113249]
[1766353458533,0.23851,88305.0,88300.0,0.01132502]
[1766353458720,0.23851,88305.0,88301.0,0.0113249]
[1766353460066,0.23851,88305.0,88302.0,0.01132477]
[1766353460262,0.01132566,88307.0,88305.0,0.000549]
[1766353460587,0.01132566,88307.0,88299.0,0.05662566]
[1766353460588,0.00568,88308.0,88299.0,0.01132515]
[1766353460788,0.03402056,88307.0,88300.0,0.01132502]
[1766353461191,0.03402056,88307.0,88299.0,0.01132515]
[1766353461555,0.03402056,88307.0,88306.0,0.0003703]
[1766353464321,0.15703056,88307.0,88306.0,3e-07]
[1766353464878,0.27253056,88307.0,88306.0,3e-07]
[1766353468279,0.27253056,88307.0,88283.0,0.05663591]
[1766353468280,0.06794988,88301.0,88283.0,0.05663591]
[1766353468486,0.12301,88293.0,88285.0,0.05663468]
[1766353468685,0.23851,88293.0,88285.0,0.01132695]
[1766353468930,0.23851,88293.0,88284.0,0.0566354]
[1766353468931,0.01357251,88294.0,88284.0,0.01132708]
[1766353469139,0.12301,88292.0,88286.0,0.01132682]
[1766353469366,0.15703307,88292.0,88285.0,0.01132695]
[1766353469497,0.15703307,88292.0,88282.0,0.01132733]
[1766353469498,0.23851,88291.0,88282.0,0.01132733]
[1766353469715,0.00568,88290.0,88283.0,0.0113272]
[1766353469938,0.23851,88289.0,88284.0,0.01132708]
[1766353470105,0.237961,88289.0,88285.0,0.01132695]
[1766353470913,0.03402307,88292.0,88289.0,0.01132643]
[1766353471094,0.00568,88297.0,88289.0,0.01132643]
[1766353471318,0.00568,88297.0,88290.0,0.01132631]
[1766353472293,0.00568,88297.0,88291.0,0.01132618]
[1766353472494,0.00568,88297.0,88290.0,0.01132631]
[1766353473319,0.00568,88297.0,88291.0,0.01132618]
[1766353473524,0.11365,88296.0,88289.0,0.01132643]
[1766353473720,0.23821,88296.0,88289.0,0.01132643]
[1766353474022,0.00568,88297.0,88288.0,0.01132656]
[1766353474221,0.23821,88296.0,88289.0,0.01132643]
[1766353474429,0.00568,88297.0,88288.0,0.01132656]
[1766353474724,0.00568,88297.0,88287.0,0.06795987]
[1766353474725,0.23821,88296.0,88287.0,0.01132669]
[1766353475121,0.00568,88297.0,88287.0,0.01132669]
[1766353475327,0.00568,88297.0,88286.0,0.01132682]
[1766353475564,0.11857,88296.0,88285.0,0.01132695]
[1766353475765,0.00568,88297.0,88285.0,0.01132695]
[1766353475894,0.00568,88297.0,88286.0,0.01132682]
[1766353476111,0.23974,88296.0,88283.0,0.0113272]
[1766353476298,0.01132554,88296.0,88284.0,0.01132708]
[1766353476519,0.00568,88297.0,88287.0,0.01132669]
[1766353476905,0.00568,88297.0,88286.0,0.01132682]
[1766353477084,0.23974,88296.0,88286.0,0.01132682]
[1766353477283,0.2281,88296.0,88286.0,0.01132682]
[1766353477590,0.2281,88296.0,88285.0,0.01132695]
[1766353477785,0.01700541,88297.0,88285.0,0.01132695]
[1766353478045,0.2281,88296.0,88285.0,0.01132695]
[1766353478251,0.00568,88297.0,88285.0,0.01132695]
[1766353478462,0.00568,88297.0,88286.0,0.01132682]
[1766353478972,0.2281,88296.0,88295.0,0.00033955]
[1766353479184,0.12117,88304.0,88295.0,5.5e-07]
[1766353479328,0.12117,88304.0,88292.0,0.01132605]
[1766353479329,0.01347251,88296.0,88293.0,0.01132592]
[1766353479519,0.01313351,88296.0,88293.0,0.01132592]
[1766353479946,0.00079872,88295.0,88293.0,0.01132592]
[1766353480153,0.00079872,88295.0,88293.0,0.01112592]
[1766353480805,0.00568,88297.0,88293.0,0.01112592]
[1766353480806,0.01357251,88294.0,88293.0,0.01112592]
[1766353482170,0.10693,88303.0,88294.0,0.01132579]
[1766353482380,0.01357251,88313.0,88299.0,0.06795068]
[1766353482381,0.00568,88302.0,88299.0,0.06795068]
[1766353482580,0.00548,88302.0,88299.0,0.06795068]
[1766353483979,0.00548,88302.0,88299.0,0.01132515]
[1766353487051,1.42e-06,88302.0,88300.0,0.05662514]
[1766353487353,0.01357251,88313.0,88306.0,0.01132425]
[1766353487551,0.00568,88312.0,88307.0,0.01132413]
[1766353488614,0.00568,88312.0,88308.0,0.011324]
[1766353488811,0.00568,88312.0,88309.0,0.01132387]
[1766353489128,0.01357251,88314.0,88309.0,0.01132387]
[1766353489129,0.00568351,88314.0,88311.0,0.01132361]
[1766353489328,0.00568351,88314.0,88309.0,0.25532387]
[1766353489495,0.00568351,88314.0,88310.0,0.01132374]
[1766353489698,0.00568351,88314.0,88310.0,0.01138448]
[1766353489957,0.00568351,88314.0,88310.0,6.074e-05]
[1766353491444,0.00568351,88314.0,88310.0,7.4e-07]
[1766353491972,0.00568351,88314.0,88310.0,0.01132448]
[1766353492472,0.00568351,88314.0,88310.0,7.4e-07]
[1766353493011,0.00568351,88314.0,88310.0,0.01132448]
[1766353493543,0.00568351,88314.0,88311.0,0.01132361]
[1766353493754,0.000489,88311.0,88310.0,7.4e-07]
[1766353493952,0.00568351,88314.0,88310.0,0.01132448]
[1766353494168,0.00568351,88314.0,88311.0,0.01132361]
[1766353494544,0.00568,88314.0,88311.0,0.01132361]
[1766353495370,0.00568,88314.0,88310.0,0.01132448]
[1766353495953,0.00568,88314.0,88311.0,0.01132361]
[1766353500407,0.00568,88314.0,88311.0,0.0679411]
[1766353500816,0.00568,88314.0,88311.0,0.01132361]
[1766353501263,0.000489,88311.0,88310.0,7.4e-07]
[1766353501698,0.00568,88314.0,88310.0,0.01132448]
[1766353501892,0.00568,88314.0,88309.0,0.01132387]
[1766353502163,0.01357251,88313.0,88304.0,0.01132451]
[1766353502395,0.11857,88312.0,88306.0,0.01132425]
[1766353502515,0.000489,88306.0,88305.0,0.01132438]
[1766353502719,0.12117,88311.0,88306.0,0.05662115]
[1766353503168,0.12117,88311.0,88305.0,0.01132438]
[1766353503412,0.12117,88307.0,88302.0,0.01132477]
[1766353503599,0.12117,88306.0,88300.0,0.47887238]
[1766353503892,0.12117,88306.0,88301.0,0.0566245]
[1766353504179,0.12117,88306.0,88301.0,0.0113249]
[1766353506155,0.000489,88301.0,88297.0,0.01132541]
[1766353506357,0.12178,88304.0,88297.0,0.01132541]
[1766353506573,0.12178,88303.0,88298.0,0.01132528]
[1766353506773,0.12178,88303.0,88299.0,0.01132515]
[1766353507766,0.00568,88302.0,88299.0,0.01132515]
[1766353508168,0.00562,88302.0,88299.0,0.01132515]
[1766353508820,0.00562,88302.0,88299.0,0.06795033]
[1766353509190,0.00562,88302.0,88296.0,0.01132554]
[1766353509191,0.1274,88302.0,88296.0,0.01132554]
[1766353510068,0.1274,88302.0,88299.0,0.01132515]
[1766353510632,0.1274,88302.0,88299.0,0.06795033]
[1766353511783,0.00562,88302.0,88299.0,0.06795033]
[1766353520245,0.00562,88302.0,88301.0,0.0566245]
[1766353520451,0.00562,88302.0,88296.0,0.01132554]
[1766353520452,0.01357251,88313.0,88307.0,0.01132413]
[1766353520654,0.00558,88312.0,88307.0,0.01132413]
[1766353521221,0.00558,88312.0,88306.0,0.01132425]
[1766353521670,0.00568,88311.0,88305.0,0.01132438]
[1766353521824,0.00568,88311.0,88306.0,0.01132425]
[1766353522423,0.00568,88311.0,88306.0,0.06794553]
[1766353522646,0.00568,88311.0,88307.0,0.01132413]
[1766353524130,0.00568,88311.0,88308.0,0.06794382]
[1766353525037,0.00568,88311.0,88309.0,0.05661873]
[1766353525705,0.02446051,88317.0,88314.0,0.06793887]
[1766353525867,0.01357251,88315.0,88314.0,0.06793887]
[1766353526305,0.01811141,88320.0,88317.0,0.01132284]
[1766353526450,0.04532,88321.0,88315.0,0.0113231]
[1766353526651,0.00568,88319.0,88316.0,0.01132297]
[1766353526849,0.00568,88319.0,88315.0,0.0113231]
[1766353527927,0.00568,88319.0,88316.0,0.01132297]
[1766353528073,0.0057325,88319.0,88316.0,0.01132297]
[1766353532284,0.0057325,88319.0,88315.0,0.0113231]
[1766353532442,0.000549,88316.0,88315.0,0.0107731]
[1766353532824,2.5e-06,88319.0,88317.0,0.05661424]
[1766353533034,0.06115601,88338.0,88316.0,0.01132297]
[1766353533035,0.09722865,88332.0,88325.0,0.06793058]
[1766353533286,0.00568,88328.0,88325.0,0.01132182]
[1766353533488,0.00568,88328.0,88324.0,0.01132195]
[1766353533613,0.00568,88328.0,88325.0,0.01132182]
[1766353533826,0.00568,88328.0,88324.0,0.01132195]
[1766353534041,0.01357251,88327.0,88324.0,0.01132195]
[1766353535190,0.01357251,88327.0,88324.0,0.06793142]
[1766353535424,0.01357251,88327.0,88324.0,0.01132195]
[1766353535773,0.01357251,88327.0,88322.0,0.0113222]
[1766353535970,0.000549,88324.0,88319.0,0.06793527]
[1766353536226,0.000549,88324.0,88322.0,0.0113222]
[1766353536388,0.12206,88326.0,88322.0,0.0113222]
[1766353536957,0.000549,88322.0,88320.0,0.01132246]
[1766353537383,0.17737,88326.0,88321.0,0.01132233]
[1766353537777,0.17737,88326.0,88322.0,0.0113222]
[1766353538317,0.17737,88326.0,88322.0,0.0107732]
[1766353538641,0.01357251,88327.0,88324.0,0.01132195]
[1766353538936,0.01357251,88327.0,88321.0,0.06793396]
[1766353538937,0.13563251,88327.0,88321.0,3.96e-06]
[1766353540694,0.13563251,88327.0,88322.0,0.0113222]
[1766353541114,0.13563251,88327.0,88323.0,0.01132207]
[1766353541280,0.13563251,88327.0,88324.0,0.01132195]
[1766353542915,0.13563251,88327.0,88321.0,3.96e-06]
[1766353543122,0.13563251,88327.0,88322.0,0.05661103]
[1766353543328,0.13563251,88327.0,88323.0,0.01132207]
[1766353544096,0.13563251,88327.0,88319.0,0.0566129]
[1766353544312,0.13563251,88327.0,88320.0,0.01132246]
[1766353544513,0.13563251,88327.0,88322.0,0.0113222]
[1766353545048,0.13563251,88327.0,88323.0,0.01132207]
[1766353547115,0.13563251,88327.0,88324.0,0.01132195]
[1766353547321,0.01302351,88327.0,88323.0,0.01132207]
[1766353547580,0.01302351,88327.0,88324.0,0.01132195]
[1766353548933,0.01302351,88327.0,88323.0,0.01132207]
[1766353549167,0.01302351,88327.0,88324.0,0.01132195]
[1766353549335,0.01302351,88327.0,88323.0,0.01132207]
[1766353550501,0.01302351,88327.0,88324.0,0.01132195]
[1766353550870,0.01302351,88327.0,88322.0,0.0113222]
[1766353551068,0.01302351,88327.0,88323.0,0.01132207]
[1766353552340,0.000549,88323.0,88321.0,0.01132233]
[1766353552529,0.000549,88323.0,88319.0,0.01132549]
[1766353552814,0.12206,88326.0,88320.0,0.01132246]
[1766353553420,0.12206,88326.0,88319.0,0.01112549]
[1766353556388,0.02446015,88325.0,88319.0,0.01112549]
[1766353556894,0.02446015,88325.0,88320.0,0.01132246]
[1766353557251,0.02446015,88325.0,88319.0,0.01112549]
[1766353557453,0.02446015,88325.0,88320.0,0.01132246]
[1766353557670,0.02446015,88325.0,88319.0,0.01112549]
[1766353558283,0.12206,88326.0,88319.0,0.01112549]
[1766353558453,0.02446015,88325.0,88319.0,0.01112549]
[1766353559050,0.12206,88324.0,88318.0,0.01132272]
[1766353559253,0.12206,88324.0,88319.0,0.01132259]
[1766353559650,0.12206,88324.0,88319.0,0.06793493]
[1766353559908,0.12206,88324.0,88321.0,0.01132233]
[1766353560435,0.01302351,88327.0,88320.0,0.01132246]
[1766353560644,0.12206,88326.0,88320.0,0.01132246]
[1766353560817,0.02446857,88325.0,88322.0,0.0113222]
[1766353561142,0.02446857,88325.0,88321.0,0.01132233]
[1766353561439,0.02446857,88325.0,88320.0,0.01132246]
[1766353561793,0.02446857,88325.0,88319.0,0.01132259]
[1766353561994,0.02446857,88325.0,88321.0,0.01132233]
[1766353562429,0.02446857,88325.0,88320.0,0.01132246]
[1766353562812,0.02446857,88325.0,88318.0,0.01132272]
[1766353563035,0.02446857,88325.0,88319.0,0.01132259]
[1766353563240,0.02446857,88325.0,88321.0,0.01132233]
[1766353563754,0.02446857,88325.0,88320.0,0.01132246]
[1766353564264,0.02446857,88325.0,88321.0,0.01132233]
[1766353565077,0.02446857,88325.0,88322.0,0.0113222]
[1766353565591,0.01302351,88327.0,88323.0,0.01132207]
[1766353565956,0.01282351,88327.0,88323.0,0.01132207]
[1766353566811,0.00568,88328.0,88325.0,0.01132182]
[1766353566942,0.01357251,88329.0,88324.0,0.12519195]
[1766353567284,0.00568,88328.0,88323.0,0.01132207]
[1766353567684,0.00568,88328.0,88322.0,0.0113222]
[1766353567826,0.12494,88328.0,88322.0,0.0113222]
[1766353569332,0.12494,88328.0,88321.0,0.01132233]
[1766353569648,0.12494,88328.0,88322.0,0.0113222]
[1766353569853,0.12494,88328.0,88321.0,0.01132233]
[1766353570275,0.12494,88328.0,88323.0,0.01132207]
[1766353570689,0.12494,88328.0,88322.0,0.0113222]
[1766353571291,0.12494,88328.0,88321.0,0.01132233]
[1766353571874,0.12494,88328.0,88317.0,0.05661424]
[1766353571994,0.12494,88328.0,88317.0,4.24e-06]
[1766353572195,0.00568,88328.0,88310.0,0.00568]
[1766353572450,0.11926,88314.0,88310.0,5.25e-05]
[1766353572651,0.11926,88314.0,88307.0,0.01132413]
[1766353572652,0.000549,88310.0,88307.0,0.01132413]
[1766353572870,0.00059754,88310.0,88307.0,0.01112413]
[1766353573167,4.854e-05,88310.0,88307.0,0.01132413]
[1766353573754,4.854e-05,88310.0,88306.0,0.01132425]
[1766353574157,4.854e-05,88310.0,88305.0,0.01132438]
[1766353574360,4.854e-05,88310.0,88306.0,0.01132425]
[1766353574772,4.854e-05,88310.0,88302.0,0.06794821]
[1766353574773,4.854e-05,88310.0,88302.0,0.01132477]
[1766353574774,0.000549,88306.0,88302.0,0.01132477]
[1766353574990,0.000549,88306.0,88295.0,0.22651096]
[1766353574991,0.000549,88302.0,88296.0,0.01132554]
[1766353575176,0.00568,88309.0,88306.0,0.01132425]
[1766353575950,0.00568,88309.0,88306.0,0.06794548]
[1766353576719,0.00568,88309.0,88306.0,0.01132425]
[1766353577370,0.005131,88309.0,88306.0,0.01132425]
[1766353578008,0.005131,88309.0,88306.0,0.06794523]
[1766353580958,0.005131,88309.0,88308.0,0.05662001]
[1766353581160,0.005131,88309.0,88306.0,0.06794523]
[1766353583426,0.005131,88309.0,88308.0,0.05662001]
[1766353583849,4.854e-05,88310.0,88308.0,0.05662001]
[1766353584050,0.01190869,88315.0,88312.0,0.01132348]
[1766353584305,0.00548,88314.0,88312.0,0.06794086]
[1766353585041,0.00548,88314.0,88312.0,8.6e-07]
[1766353585665,0.00548,88314.0,88312.0,0.05661824]
[1766353586432,0.00548,88314.0,88312.0,0.06794172]
[1766353587338,0.1234,88313.0,88312.0,0.01077534]
[1766353588399,0.04532,88322.0,88314.0,0.06793939]
[1766353588667,0.00568,88321.0,88309.0,0.01132387]
[1766353588787,0.00055,88314.0,88311.0,0.01132361]
[1766353588985,0.00568,88313.0,88311.0,0.01132361]
[1766353589426,0.00568,88313.0,88309.0,0.01132387]
[1766353589427,0.00568,88313.0,88310.0,0.01132374]
[1766353590791,0.00568,88313.0,88309.0,0.01132387]
[1766353590998,0.00568,88313.0,88310.0,0.01132374]
[1766353592608,0.00568,88313.0,88309.0,0.01132387]
[1766353592609,0.12908,88313.0,88309.0,0.01132387]
[1766353592985,0.00055,88309.0,88307.0,0.05662008]
[1766353593292,0.00055,88309.0,88307.0,0.05642008]
[1766353593466,0.12908,88313.0,88310.0,0.01132374]
[1766353594032,0.00568,88313.0,88310.0,0.01132374]
[1766353597886,0.11329,88324.0,88313.0,0.01187236]
[1766353598210,0.03013258,88323.0,88315.0,0.0113231]
[1766353598408,0.11329,88322.0,88315.0,0.0113231]
[1766353598608,0.02445258,88321.0,88316.0,0.01132297]
[1766353598971,0.00568,88323.0,88316.0,0.01132297]
[1766353599369,0.00568,88323.0,88314.0,0.01132323]
[1766353599890,0.00568,88323.0,88313.0,0.01132336]
[1766353600072,0.00568,88323.0,88314.0,0.01132323]
[1766353600272,0.00568,88323.0,88313.0,0.01132336]
[1766353600470,0.11329,88322.0,88314.0,0.01132323]
[1766353600678,0.11329,88320.0,88314.0,0.01132323]
[1766353600918,0.02445258,88319.0,88314.0,0.01132323]
[1766353601090,0.00568,88318.0,88314.0,0.01132323]
[1766353602138,0.00568,88318.0,88315.0,0.0113231]
[1766353604905,0.00568,88318.0,88315.0,0.06793842]
[1766353605103,0.005131,88318.0,88317.0,0.05661424]
[1766353605647,0.005131,88318.0,88315.0,0.06793842]
[1766353608215,0.005131,88318.0,88315.0,0.0113231]
[1766353608411,0.118421,88318.0,88306.0,0.06794418]
[1766353608637,0.118421,88318.0,88301.0,0.23217758]
[1766353608638,0.01357251,88308.0,88303.0,0.01132464]
[1766353608836,0.00050146,88303.0,88298.0,0.01132528]
[1766353609013,0.11379146,88303.0,88297.0,0.03401844]
[1766353609195,0.11379146,88303.0,88299.0,0.01132515]
[1766353609402,0.11329,88301.0,88299.0,0.01132515]
[1766353609603,0.11329,88301.0,88295.0,0.01132566]
[1766353609822,0.11329,88301.0,88291.0,0.05663055]
[1766353609823,0.11329,88301.0,88292.0,0.01132605]
[1766353610025,0.11329,88301.0,88289.0,0.03401844]
[1766353610026,0.01357251,88294.0,88289.0,0.03401844]
[1766353610238,0.11329,88301.0,88289.0,0.03401844]
[1766353610239,0.11897,88296.0,88289.0,0.03401844]
[1766353610431,0.11897,88296.0,88284.0,0.01132939]
[1766353610660,0.11897,88296.0,88285.0,0.01132695]
[1766353611110,0.00568,88296.0,88287.0,0.12452425]
[1766353611317,0.00568,88296.0,88287.0,0.11319756]
[1766353611526,0.00568,88296.0,88287.0,0.12452425]
[1766353611706,0.00568,88296.0,88288.0,0.01132656]
[1766353611901,0.00568,88296.0,88287.0,0.12452425]
[1766353612450,0.00568,88296.0,88284.0,0.17998738]
[1766353612451,0.11329,88286.0,88284.0,2.31e-06]
[1766353612617,0.11329,88284.0,88275.0,0.01132823]
[1766353612821,0.12461733,88282.0,88275.0,7.293e-05]
[1766353612996,0.11329,88280.0,88275.0,2.93e-06]
[1766353613205,0.01357251,88276.0,88275.0,2.93e-06]
[1766353613586,0.01352451,88276.0,88275.0,2.93e-06]
[1766353614248,0.01352451,88276.0,88259.0,0.01133028]
[1766353614249,0.11329,88272.0,88259.0,0.01133028]
[1766353614425,0.01357251,88262.0,88257.0,0.00608]
[1766353614605,0.01302251,88262.0,88257.0,0.0004]
[1766353615189,0.01302251,88262.0,88249.0,0.01173157]
[1766353615190,0.01133067,88256.0,88249.0,0.0004]
[1766353615440,0.0004,88257.0,88249.0,0.0004]
[1766353615441,0.11897,88255.0,88249.0,0.00060841]
[1766353615846,0.11897,88255.0,88246.0,0.01133195]
[1766353616065,0.11897,88255.0,88244.0,0.01133221]
[1766353616066,0.0003574,88255.0,88249.0,0.01133157]
[1766353616266,0.0003574,88255.0,88248.0,0.12335]
[1766353616267,0.00568,88254.0,88248.0,0.2363]
[1766353616519,0.00568,88254.0,88249.0,0.2363]
[1766353616663,0.0003574,88255.0,88254.0,0.000149]
[1766353616867,0.0003574,88255.0,88249.0,0.2363]
[1766353616868,0.0060374,88255.0,88250.0,0.06798813]
[1766353617071,0.0060374,88255.0,88252.0,0.01133118]
[1766353617272,0.0060374,88255.0,88251.0,0.01133131]
[1766353617727,0.0003574,88255.0,88251.0,0.01133131]
[1766353617937,0.00568,88254.0,88249.0,0.12428157]
[1766353618399,0.00568,88254.0,88250.0,0.01133144]
[1766353618595,0.00568,88254.0,88249.0,0.01133157]
[1766353618794,0.00568,88254.0,88253.0,0.00104987]
[1766353620211,0.00122793,88254.0,88253.0,0.00104987]
[1766353620795,0.02435395,88262.0,88253.0,0.00104987]
[1766353620796,0.02838052,88262.0,88259.0,0.01133028]
[1766353620992,0.01690008,88262.0,88259.0,0.01133028]
[1766353621533,0.01690008,88262.0,88258.0,0.01133041]
[1766353621696,0.01690008,88262.0,88255.0,0.0113308]
[1766353622116,0.01690008,88262.0,88258.0,0.01133041]
[1766353622666,0.07016543,88276.0,88258.0,0.01133041]
[1766353622667,0.00568,88263.0,88261.0,0.11295]
[1766353622819,0.00568,88267.0,88261.0,0.11295]
[1766353623374,0.01357251,88262.0,88257.0,0.01133054]
[1766353623521,0.01357251,88262.0,88259.0,0.01133028]
[1766353623719,0.04532,88274.0,88265.0,0.2363]
[1766353623720,0.00568,88269.0,88265.0,0.2363]
[1766353624366,0.00568,88271.0,88266.0,0.11295]
[1766353624568,0.00568,88271.0,88266.0,0.2363]
[1766353624728,0.00548,88271.0,88268.0,0.01132913]
[1766353625358,0.00568,88272.0,88269.0,0.011329]
[1766353625772,0.01352451,88276.0,88273.0,0.01132849]
[1766353625933,0.00568,88275.0,88273.0,0.01132849]
[1766353626133,0.00568,88277.0,88273.0,0.01132849]
[1766353626337,0.01357251,88276.0,88272.0,0.01132862]
[1766353626763,0.01352451,88282.0,88272.0,0.01132862]
[1766353626764,0.01352451,88282.0,88275.0,0.0003705]
[1766353626993,0.01352451,88282.0,88275.0,0.05664104]
[1766353626994,4.51e-06,88282.0,88275.0,0.05664104]
[1766353627201,0.00568,88283.0,88279.0,0.11338]
[1766353627415,0.00010719,88283.0,88279.0,0.1813462]
[1766353627675,0.00010719,88283.0,88280.0,0.01132759]
[1766353627833,0.00568,88285.0,88283.0,0.05663584]
[1766353628047,0.01357251,88290.0,88287.0,0.01132669]
[1766353628249,0.01925251,88290.0,88285.0,0.01132695]
[1766353628429,0.01925251,88290.0,88286.0,0.01132682]
[1766353628823,0.01925251,88290.0,88285.0,0.01132695]
[1766353629595,0.01357251,88287.0,88286.0,0.23929682]
[1766353629744,0.00568,88294.0,88290.0,0.11338]
[1766353630073,0.01357251,88291.0,88290.0,0.227421]
[1766353630996,0.0001,88298.0,88291.0,0.01187518]
[1766353631208,0.00568,88297.0,88291.0,0.01132618]
[1766353631884,0.00451377,88297.0,88294.0,0.01132579]
[1766353632065,0.00396477,88297.0,88294.0,0.01132579]
[1766353632267,0.0001,88298.0,88295.0,0.01132566]
[1766353632465,0.0001,88298.0,88294.0,0.01132579]
[1766353633109,0.0001,88298.0,88295.0,0.06795367]
[1766353633446,0.00568,88300.0,88297.0,0.06795187]
[1766353633835,0.00568,88305.0,88298.0,0.01132528]
[1766353634031,0.01357251,88308.0,88298.0,0.11338]
[1766353634246,0.01132387,88309.0,88298.0,0.11338]
[1766353634458,0.01143114,88309.0,88298.0,0.22797]
[1766353634818,0.01143114,88309.0,88299.0,0.11338]
[1766353635322,0.01132413,88307.0,88299.0,0.11338]
[1766353635507,0.01132425,88306.0,88299.0,0.11338]
[1766353635718,0.01132413,88307.0,88299.0,0.11338]
[1766353635912,0.01132425,88306.0,88299.0,0.11338]
[1766353636534,0.000549,88299.0,88290.0,0.11338]
[1766353636862,0.000549,88299.0,88288.0,0.00568]
[1766353636863,0.00055,88290.0,88288.0,0.00568]
[1766353637016,0.01357251,88291.0,88288.0,0.00568]
[1766353637533,0.01132579,88294.0,88288.0,0.00568]
[1766353637534,0.01357251,88294.0,88288.0,0.00568]
[1766353638303,0.0248983,88294.0,88288.0,0.00568]
[1766353638472,0.000549,88288.0,88283.0,0.01357251]
[1766353639025,0.01132618,88291.0,88283.0,0.01357251]
[1766353639427,0.01132631,88290.0,88283.0,0.01357251]
[1766353639661,0.01132605,88292.0,88283.0,0.01357251]
[1766353639881,0.01132643,88289.0,88283.0,0.01357251]
[1766353640079,0.01132631,88290.0,88283.0,0.01357251]
[1766353640281,0.01132733,88282.0,88279.0,0.00024701]
[1766353640513,0.001099,88283.0,88280.0,0.00568]
[1766353640722,0.01132708,88284.0,88275.0,0.14861751]
[1766353640723,0.01132733,88282.0,88275.0,0.03402751]
[1766353640901,0.0249001,88280.0,88275.0,0.03402751]
[1766353641396,0.0249001,88280.0,88272.0,0.11906]
[1766353641598,0.0249001,88280.0,88272.0,0.11916719]
[1766353641944,0.01357251,88280.0,88272.0,0.11916719]
[1766353643763,0.01132772,88279.0,88272.0,0.00578719]
[1766353644178,0.1448801,88280.0,88272.0,0.00578719]
[1766353644419,0.01132772,88279.0,88272.0,0.00578719]
[1766353644622,0.1448801,88280.0,88272.0,0.00578719]
[1766353645081,0.01132823,88275.0,88272.0,0.00010719]
[1766353645533,0.01132823,88275.0,88268.0,0.00568]
[1766353645753,0.11998,88273.0,88265.0,0.0001]
[1766353645977,0.01132862,88272.0,88265.0,0.0001]
[1766353646179,0.01132913,88268.0,88265.0,0.0001]
[1766353646323,0.01132874,88271.0,88248.0,0.0113317]
[1766353646324,0.01132977,88263.0,88258.0,3.38e-06]
[1766353646524,0.01132977,88263.0,88252.0,0.00568]
[1766353646525,0.01357251,88266.0,88252.0,0.00568]
[1766353646721,0.01367971,88266.0,88255.0,0.0113308]
[1766353646923,0.1422691,88266.0,88254.0,0.11862]
[1766353647145,0.01367971,88266.0,88255.0,0.0113308]
[1766353647662,0.01367971,88266.0,88254.0,0.24489093]
[1766353647965,0.01367971,88266.0,88255.0,0.1299508]
[1766353648475,0.01367971,88266.0,88256.0,0.01133067]
[1766353648679,0.01367971,88266.0,88255.0,0.1299508]
[1766353649085,0.01367971,88266.0,88257.0,0.01133054]
[1766353649286,0.01367971,88266.0,88259.0,0.01133028]
[1766353649492,0.01367971,88266.0,88258.0,0.01133041]
[1766353649688,0.0001072,88266.0,88265.0,0.0004323]
[1766353650663,0.0004297,88265.0,88257.0,0.00568]
[1766353650863,0.11726,88261.0,88257.0,3e-06]
[1766353651562,0.0113299,88262.0,88257.0,3e-06]
[1766353651985,0.01132977,88263.0,88257.0,3e-06]
[1766353652195,0.01132977,88263.0,88253.0,0.00568]
[1766353652713,0.12858977,88263.0,88253.0,0.00568]
[1766353652955,0.11726,88263.0,88253.0,0.00568]
[1766353654162,0.08733646,88266.0,88235.0,0.01133337]
[1766353654163,0.0113317,88248.0,88235.0,0.01133337]
[1766353654468,0.01357251,88244.0,88237.0,0.01133311]
[1766353654672,0.01345351,88244.0,88237.0,0.23356]
[1766353657423,0.01345351,88244.0,88232.0,0.00568]
[1766353657577,0.02478572,88244.0,88232.0,0.00568]
[1766353657759,0.02478572,88244.0,88232.0,0.01701375]
[1766353658191,0.01701337,88245.0,88239.0,0.11608]
[1766353658397,0.01646337,88245.0,88240.0,0.11608]
[1766353658603,0.01646337,88245.0,88240.0,0.2359]
[1766353658976,0.01078337,88245.0,88240.0,0.2359]
[1766353662177,0.01925251,88247.0,88240.0,0.2359]
[1766353665513,0.01925251,88251.0,88242.0,0.01133247]
[1766353665709,0.01925251,88251.0,88240.0,0.11982]
[1766353665710,0.00568,88250.0,88244.0,0.2359]
[1766353665907,0.00558,88250.0,88244.0,0.2359]
[1766353669185,0.00558,88250.0,88244.0,0.119271]
[1766353669824,0.00558,88250.0,88239.0,0.11608]
[1766353670803,0.01691144,88250.0,88239.0,0.11608]
[1766353671068,0.00558,88250.0,88239.0,0.11608]
[1766353671283,0.00558,88250.0,88240.0,0.11982]
[1766353671507,0.00558,88250.0,88241.0,0.11982]
[1766353671723,0.00558,88250.0,88241.0,0.2359]
[1766353673300,0.05665214,88258.0,88240.0,0.01133272]
[1766353673301,0.00568,88255.0,88250.0,0.000549]
[1766353673520,0.22659057,88265.0,88248.0,0.2359]
[1766353673521,0.00568,88256.0,88248.0,0.2359]
[1766353674685,0.00568,88256.0,88249.0,0.01133157]
[1766353674928,0.00568,88256.0,88248.0,0.2359]
[1766353674929,0.00568,88256.0,88248.0,0.2472317]
[1766353675533,0.00568,88256.0,88249.0,0.01133157]
[1766353675760,0.00568,88256.0,88250.0,0.01133144]
[1766353676558,0.01357251,88260.0,88250.0,0.01133144]
[1766353676812,0.00568,88259.0,88253.0,0.2359]
[1766353676944,0.00568,88259.0,88254.0,0.11608]
[1766353677148,0.00568,88259.0,88254.0,0.2359]
[1766353677349,0.04942183,88266.0,88256.0,0.11608]
[1766353677350,0.00568,88262.0,88256.0,0.11608]
[1766353677549,0.0001072,88266.0,88262.0,0.116629]
[1766353677797,0.0001072,88266.0,88262.0,0.1279589]
[1766353678006,0.0001072,88266.0,88262.0,0.11608]
[1766353680032,0.00055,88262.0,88261.0,0.11982]
[1766353680238,0.0001072,88266.0,88261.0,0.11982]
[1766353680792,0.0001072,88266.0,88258.0,0.12176]
[1766353680994,0.00055,88258.0,88255.0,0.00568]
[1766353681195,0.01357251,88260.0,88255.0,0.00568]